[Event "Late-Titled-Tuesday-Blitz-May-14-2024"]
[Site "Chess.com"]
[Date "2024.05.14"]
[Round "3"]
[White "laskakid"]
[Black "biostatistician"]
[Result "0-1"]
[WhiteElo "2391"]
[BlackElo "2613"]
[TimeControl "180+1"]
[EndTime "14:29:10 PDT"]
[Termination "biostatistician won by resignation"]

1. e4 {[%clk 0:03:00.9]} 1... e5 {[%clk 0:03:00]} 2. Nf3 {[%clk 0:03:00.5]} 2...
Nc6 {[%clk 0:03:00.1]} 3. Bb5 {[%clk 0:03:00.5]} 3... Nf6 {[%clk 0:03:00.3]} 4.
d3 {[%clk 0:03:00.1]} 4... d6 {[%clk 0:02:59.1]} 5. O-O {[%clk 0:02:56.5]} 5...
Bd7 {[%clk 0:02:59.1]} 6. c3 {[%clk 0:02:54.6]} 6... g6 {[%clk 0:02:59.4]} 7.
Re1 {[%clk 0:02:48.6]} 7... Bg7 {[%clk 0:02:59.6]} 8. h3 {[%clk 0:02:37.7]} 8...
O-O {[%clk 0:02:59.3]} 9. a4 {[%clk 0:02:28.6]} 9... Re8 {[%clk 0:02:57.7]} 10.
a5 {[%clk 0:02:23.4]} 10... a6 {[%clk 0:02:56.4]} 11. Bc4 {[%clk 0:02:23.5]}
11... Be6 {[%clk 0:02:51.8]} 12. Nbd2 {[%clk 0:02:19.4]} 12... Qd7 {[%clk
0:02:47.3]} 13. d4 {[%clk 0:02:03.7]} 13... Bxc4 {[%clk 0:02:41.1]} 14. Nxc4
{[%clk 0:02:03.2]} 14... exd4 {[%clk 0:02:41.7]} 15. cxd4 {[%clk 0:01:49.8]}
15... Rxe4 {[%clk 0:02:37.3]} 16. Rxe4 {[%clk 0:01:40.6]} 16... Nxe4 {[%clk
0:02:38.2]} 17. Be3 {[%clk 0:01:25.4]} 17... Re8 {[%clk 0:02:34.8]} 18. Qb3
{[%clk 0:01:23.2]} 18... d5 {[%clk 0:02:31.6]} 19. Nce5 {[%clk 0:01:15.8]} 19...
Nxe5 {[%clk 0:02:31.7]} 20. Nxe5 {[%clk 0:01:14.7]} 20... Qb5 {[%clk 0:02:29.4]}
21. Qc2 {[%clk 0:01:00.9]} 21... c5 {[%clk 0:02:26.1]} 22. Nf3 {[%clk
0:00:52.1]} 22... cxd4 {[%clk 0:02:16.9]} 23. Bxd4 {[%clk 0:00:43.1]} 23... Qc4
{[%clk 0:02:16.7]} 24. Qxc4 {[%clk 0:00:35.2]} 24... dxc4 {[%clk 0:02:17.6]} 25.
Rc1 {[%clk 0:00:32.5]} 25... Bxd4 {[%clk 0:02:07.2]} 26. Nxd4 {[%clk 0:00:31.6]}
26... Re5 {[%clk 0:02:07.5]} 27. Rxc4 {[%clk 0:00:28.8]} 27... Rxa5 {[%clk
0:02:07.1]} 28. Nb3 {[%clk 0:00:23.4]} 28... Rb5 {[%clk 0:02:02.7]} 29. Rxe4
{[%clk 0:00:20.6]} 29... Rxb3 {[%clk 0:02:02.6]} 30. Re2 {[%clk 0:00:20.9]}
30... a5 {[%clk 0:01:54]} 31. Kf1 {[%clk 0:00:20.4]} 31... a4 {[%clk 0:01:52.9]}
32. Ke1 {[%clk 0:00:17.4]} 32... b5 {[%clk 0:01:52.9]} 33. Kd1 {[%clk
0:00:16.6]} 33... Kg7 {[%clk 0:01:50.1]} 34. Kc2 {[%clk 0:00:16.7]} 34... h5
{[%clk 0:01:48.5]} 35. Re7 {[%clk 0:00:14.4]} 35... h4 {[%clk 0:01:48.4]} 36.
Re4 {[%clk 0:00:13.5]} 36... g5 {[%clk 0:01:48.2]} 37. Re5 {[%clk 0:00:12.8]}
37... f6 {[%clk 0:01:48.3]} 38. Rc5 {[%clk 0:00:13]} 38... Kg6 {[%clk
0:01:48.6]} 39. f3 {[%clk 0:00:12.2]} 39... f5 {[%clk 0:01:47.4]} 40. Rc6+
{[%clk 0:00:12.1]} 40... Kf7 {[%clk 0:01:47.7]} 41. Rc5 {[%clk 0:00:12.5]} 41...
Kf6 {[%clk 0:01:48.1]} 42. Rc6+ {[%clk 0:00:12.8]} 42... Ke5 {[%clk 0:01:49]}
43. Rc5+ {[%clk 0:00:13.1]} 43... Kf4 {[%clk 0:01:48.5]} 44. Rd5 {[%clk
0:00:13.1]} 44... Re3 {[%clk 0:01:38.9]} 45. Kd2 {[%clk 0:00:12.4]} 45... Rb3
{[%clk 0:01:36.2]} 46. Kc2 {[%clk 0:00:12]} 46... Kg3 {[%clk 0:01:32]} 47. Rxf5
{[%clk 0:00:11.8]} 47... Kxg2 {[%clk 0:01:32.4]} 48. Rxg5+ {[%clk 0:00:11.9]}
48... Kxh3 {[%clk 0:01:32.6]} 49. f4 {[%clk 0:00:11.5]} 49... b4 {[%clk
0:01:29.2]} 50. f5 {[%clk 0:00:11.3]} 50... Rf3 {[%clk 0:01:28.7]} 51. Rh5
{[%clk 0:00:09.1]} 51... Kg4 {[%clk 0:01:25.9]} 52. Rh8 {[%clk 0:00:08.2]} 52...
Rxf5 {[%clk 0:01:26]} 53. Rg8+ {[%clk 0:00:08.4]} 53... Kh3 {[%clk 0:01:25.1]}
54. Ra8 {[%clk 0:00:08.3]} 54... Rf4 {[%clk 0:01:23.3]} 55. Rxa4 {[%clk
0:00:08.2]} 55... b3+ {[%clk 0:01:14.9]} 56. Kxb3 {[%clk 0:00:08.4]} 56... Rxa4
{[%clk 0:01:15.8]} 57. Kxa4 {[%clk 0:00:08.9]} 57... Kg4 {[%clk 0:01:15.6]} 58.
b4 {[%clk 0:00:09.6]} 58... h3 {[%clk 0:01:16.5]} 59. b5 {[%clk 0:00:10]} 59...
h2 {[%clk 0:01:17.4]} 60. b6 {[%clk 0:00:10]} 60... h1=Q {[%clk 0:01:18.3]} 61.
Kb5 {[%clk 0:00:10.3]} 61... Qb7 {[%clk 0:01:18.6]} 62. Kc5 {[%clk 0:00:10.4]}
62... Kf4 {[%clk 0:01:19.5]} 0-1

[Event "Late-Titled-Tuesday-Blitz-May-14-2024"]
[Site "Chess.com"]
[Date "2024.05.14"]
[Round "3"]
[White "artin10862"]
[Black "bazar-wokzal"]
[Result "1-0"]
[WhiteElo "2866"]
[BlackElo "2613"]
[TimeControl "180+1"]
[EndTime "14:29:12 PDT"]
[Termination "artin10862 won on time"]

1. h4 {[%clk 0:02:58.5]} 1... e5 {[%clk 0:02:59.5]} 2. g3 {[%clk 0:02:57.5]}
2... d5 {[%clk 0:02:59.4]} 3. Bg2 {[%clk 0:02:57.4]} 3... Nc6 {[%clk 0:02:59.5]}
4. d3 {[%clk 0:02:57.3]} 4... f5 {[%clk 0:02:59.4]} 5. a3 {[%clk 0:02:56.2]}
5... Nf6 {[%clk 0:02:58.7]} 6. b4 {[%clk 0:02:55]} 6... Bd6 {[%clk 0:02:55.4]}
7. Bg5 {[%clk 0:02:54.2]} 7... h6 {[%clk 0:02:54.6]} 8. Bxf6 {[%clk 0:02:53.8]}
8... Qxf6 {[%clk 0:02:55.5]} 9. Bxd5 {[%clk 0:02:54.4]} 9... e4 {[%clk
0:02:55.1]} 10. c3 {[%clk 0:02:42.2]} 10... e3 {[%clk 0:02:54.8]} 11. Nf3 {[%clk
0:02:39.8]} 11... exf2+ {[%clk 0:02:50.1]} 12. Kxf2 {[%clk 0:02:40.1]} 12... Be6
{[%clk 0:02:29.3]} 13. Bxe6 {[%clk 0:02:34.3]} 13... Qxe6 {[%clk 0:02:29]} 14.
Nbd2 {[%clk 0:02:31.4]} 14... O-O-O {[%clk 0:02:28.2]} 15. Qb3 {[%clk
0:02:28.9]} 15... Qe7 {[%clk 0:02:24.5]} 16. Rae1 {[%clk 0:02:26.3]} 16... g5
{[%clk 0:02:20.5]} 17. e3 {[%clk 0:02:23.1]} 17... Rhg8 {[%clk 0:02:03.1]} 18.
Rhg1 {[%clk 0:02:18.7]} 18... Ne5 {[%clk 0:01:21.4]} 19. Nxe5 {[%clk 0:02:11.6]}
19... Bxe5 {[%clk 0:01:21.8]} 20. Nf3 {[%clk 0:02:11.8]} 20... Bf6 {[%clk
0:01:10.7]} 21. hxg5 {[%clk 0:02:09]} 21... hxg5 {[%clk 0:01:09.8]} 22. d4
{[%clk 0:02:09.5]} 22... Rh8 {[%clk 0:00:57.1]} 23. Rh1 {[%clk 0:01:59.7]} 23...
Qe4 {[%clk 0:00:45.9]} 24. Qb1 {[%clk 0:01:51.5]} 24... Qd5 {[%clk 0:00:38.5]}
25. c4 {[%clk 0:01:32.2]} 25... Qe6 {[%clk 0:00:23.3]} 26. Rxh8 {[%clk
0:01:30.1]} 26... Rxh8 {[%clk 0:00:21.2]} 27. Rh1 {[%clk 0:01:31]} 27... Rxh1
{[%clk 0:00:17.1]} 28. Qxh1 {[%clk 0:01:31.9]} 28... Qxc4 {[%clk 0:00:17.5]} 29.
Qb1 {[%clk 0:01:30.5]} 29... Qd5 {[%clk 0:00:15.8]} 30. Qc2 {[%clk 0:01:28]}
30... a5 {[%clk 0:00:15.5]} 31. bxa5 {[%clk 0:01:24.9]} 31... Qxa5 {[%clk
0:00:15.6]} 32. Qb3 {[%clk 0:01:25.5]} 32... Kb8 {[%clk 0:00:13.3]} 33. Qe6
{[%clk 0:01:23.3]} 33... Bd8 {[%clk 0:00:08.6]} 34. Qb3 {[%clk 0:00:53.2]} 34...
g4 {[%clk 0:00:07.9]} 35. Ng1 {[%clk 0:00:53.6]} 35... Qd2+ {[%clk 0:00:07.6]}
36. Ne2 {[%clk 0:00:54.2]} 36... Ka7 {[%clk 0:00:05.7]} 37. Qa4+ {[%clk
0:00:49.8]} 37... Kb6 {[%clk 0:00:05.4]} 38. Qe8 {[%clk 0:00:42.3]} 1-0

[Event "Late-Titled-Tuesday-Blitz-May-14-2024"]
[Site "Chess.com"]
[Date "2024.05.14"]
[Round "3"]
[White "TanitoluwaAps116"]
[Black "simaopdias"]
[Result "1-0"]
[WhiteElo "2748"]
[BlackElo "2236"]
[TimeControl "180+1"]
[EndTime "14:29:12 PDT"]
[Termination "TanitoluwaAps116 won by checkmate"]

1. e4 {[%clk 0:02:06.2]} 1... c5 {[%clk 0:02:59]} 2. Nf3 {[%clk 0:02:06]} 2...
g6 {[%clk 0:02:59.9]} 3. c3 {[%clk 0:02:05.1]} 3... Bg7 {[%clk 0:03:00.2]} 4. d4
{[%clk 0:02:03.9]} 4... cxd4 {[%clk 0:03:01.1]} 5. cxd4 {[%clk 0:02:03.9]} 5...
d5 {[%clk 0:03:01.4]} 6. e5 {[%clk 0:02:02.3]} 6... Nh6 {[%clk 0:03:00.9]} 7. h3
{[%clk 0:01:47.9]} 7... O-O {[%clk 0:03:00.8]} 8. Bf4 {[%clk 0:01:46.3]} 8... f6
{[%clk 0:02:53.1]} 9. Nc3 {[%clk 0:01:34.7]} 9... fxe5 {[%clk 0:02:42.9]} 10.
Bxe5 {[%clk 0:01:13.5]} 10... Nc6 {[%clk 0:02:42.4]} 11. Bxg7 {[%clk 0:01:11.5]}
11... Kxg7 {[%clk 0:02:43.3]} 12. Bb5 {[%clk 0:01:09.7]} 12... Qb6 {[%clk
0:02:08.4]} 13. Bxc6 {[%clk 0:01:03.1]} 13... bxc6 {[%clk 0:02:07]} 14. Qe2
{[%clk 0:00:24.8]} 14... Rxf3 {[%clk 0:01:21.8]} 15. Qxf3 {[%clk 0:00:11.3]}
15... Nf5 {[%clk 0:01:18.3]} 16. Qe2 {[%clk 0:00:04.6]} 16... Qxd4 {[%clk
0:01:08]} 17. g4 {[%clk 0:00:03.9]} 17... e5 {[%clk 0:00:39.3]} 18. gxf5 {[%clk
0:00:03.6]} 18... Bxf5 {[%clk 0:00:40.2]} 19. Rd1 {[%clk 0:00:02.7]} 19... Qf4
{[%clk 0:00:39.4]} 20. Qe3 {[%clk 0:00:03.2]} 20... Qxe3+ {[%clk 0:00:35.8]} 21.
fxe3 {[%clk 0:00:03.3]} 21... Rb8 {[%clk 0:00:33.1]} 22. b3 {[%clk 0:00:03.7]}
22... Kf6 {[%clk 0:00:31.5]} 23. e4 {[%clk 0:00:03.9]} 23... d4 {[%clk
0:00:28.9]} 24. exf5 {[%clk 0:00:03.5]} 24... dxc3 {[%clk 0:00:29]} 25. fxg6
{[%clk 0:00:04.1]} 25... hxg6 {[%clk 0:00:27.5]} 26. Rd6+ {[%clk 0:00:04]} 26...
Kf5 {[%clk 0:00:27.1]} 27. Rxc6 {[%clk 0:00:04.9]} 27... Ke4 {[%clk 0:00:24.3]}
28. Rxc3 {[%clk 0:00:04.8]} 28... Kd4 {[%clk 0:00:24.5]} 29. Rc4+ {[%clk
0:00:05]} 29... Kd3 {[%clk 0:00:23.3]} 30. Rg1 {[%clk 0:00:05.4]} 30... e4
{[%clk 0:00:21.8]} 31. Rg3+ {[%clk 0:00:04.6]} 31... e3 {[%clk 0:00:20.3]} 32.
Rgg4 {[%clk 0:00:05.3]} 32... Rd8 {[%clk 0:00:18.8]} 33. a4 {[%clk 0:00:03.4]}
33... Rd6 {[%clk 0:00:18.7]} 34. h4 {[%clk 0:00:03.4]} 34... e2 {[%clk
0:00:18.5]} 35. Rg3# {[%clk 0:00:03.2]} 1-0

[Event "Late-Titled-Tuesday-Blitz-May-14-2024"]
[Site "Chess.com"]
[Date "2024.05.14"]
[Round "3"]
[White "PawnEatingZombie"]
[Black "KamilGrycel"]
[Result "0-1"]
[WhiteElo "2305"]
[BlackElo "2569"]
[TimeControl "180+1"]
[EndTime "14:29:20 PDT"]
[Termination "KamilGrycel won on time"]

1. e4 {[%clk 0:02:54.2]} 1... d6 {[%clk 0:03:00.9]} 2. d4 {[%clk 0:02:48.3]}
2... Nf6 {[%clk 0:03:00.9]} 3. Bd3 {[%clk 0:02:47.4]} 3... e5 {[%clk 0:03:00.5]}
4. c3 {[%clk 0:02:45.7]} 4... d5 {[%clk 0:03:00.8]} 5. dxe5 {[%clk 0:02:36.8]}
5... Nxe4 {[%clk 0:03:00.8]} 6. Nf3 {[%clk 0:02:36.5]} 6... Nc5 {[%clk
0:02:59.3]} 7. Bc2 {[%clk 0:02:27.7]} 7... Nc6 {[%clk 0:02:58.8]} 8. h3 {[%clk
0:02:24.9]} 8... Be6 {[%clk 0:02:50.9]} 9. O-O {[%clk 0:02:23.1]} 9... Be7
{[%clk 0:02:33.1]} 10. Re1 {[%clk 0:02:22.6]} 10... h6 {[%clk 0:02:22.2]} 11. b4
{[%clk 0:02:21.7]} 11... Nd7 {[%clk 0:02:18.5]} 12. a3 {[%clk 0:02:13.8]} 12...
a6 {[%clk 0:02:16.1]} 13. Bb2 {[%clk 0:02:13.7]} 13... Nb6 {[%clk 0:02:15.8]}
14. Nbd2 {[%clk 0:02:10.4]} 14... Qd7 {[%clk 0:02:15.4]} 15. Bb3 {[%clk
0:02:03.3]} 15... Nc4 {[%clk 0:02:11.3]} 16. Qc2 {[%clk 0:01:50.6]} 16... Bf5
{[%clk 0:01:51.3]} 17. Qc1 {[%clk 0:01:40.3]} 17... b5 {[%clk 0:01:48.9]} 18. a4
{[%clk 0:01:24]} 18... O-O {[%clk 0:01:48]} 19. Bxc4 {[%clk 0:01:10.4]} 19...
dxc4 {[%clk 0:01:21.1]} 20. Ne4 {[%clk 0:01:09.9]} 20... Rad8 {[%clk 0:01:03.5]}
21. axb5 {[%clk 0:01:06.3]} 21... axb5 {[%clk 0:01:03.7]} 22. Nd4 {[%clk
0:00:41]} 22... Nxd4 {[%clk 0:00:59.8]} 23. cxd4 {[%clk 0:00:39.1]} 23... Bxb4
{[%clk 0:00:58.7]} 24. Re3 {[%clk 0:00:33]} 24... Qd5 {[%clk 0:00:52.6]} 25. Nc3
{[%clk 0:00:26.2]} 25... Bxc3 {[%clk 0:00:44.3]} 26. Bxc3 {[%clk 0:00:26.3]}
26... Ra8 {[%clk 0:00:43.4]} 27. Qb2 {[%clk 0:00:17.6]} 27... Bd7 {[%clk
0:00:41.2]} 28. Qb4 {[%clk 0:00:14.5]} 28... Bc6 {[%clk 0:00:38.5]} 29. f3
{[%clk 0:00:13.6]} 29... Rxa1+ {[%clk 0:00:36.9]} 30. Bxa1 {[%clk 0:00:13.2]}
30... Ra8 {[%clk 0:00:37.5]} 31. Bc3 {[%clk 0:00:12.7]} 31... Qd7 {[%clk
0:00:34.1]} 32. Qc5 {[%clk 0:00:06.8]} 32... Qd5 {[%clk 0:00:31.3]} 33. Qxd5
{[%clk 0:00:06.2]} 33... Bxd5 {[%clk 0:00:32.2]} 34. Bb4 {[%clk 0:00:04.5]}
34... Ra2 {[%clk 0:00:30.9]} 35. Kh2 {[%clk 0:00:03.4]} 35... Rb2 {[%clk
0:00:30.1]} 36. Bc3 {[%clk 0:00:01.7]} 36... Rc2 {[%clk 0:00:30]} 37. Kg3 {[%clk
0:00:00.7]} 37... Kh7 {[%clk 0:00:29.7]} 38. h4 {[%clk 0:00:01]} 38... Kg6
{[%clk 0:00:29.9]} 39. Kh3 {[%clk 0:00:01.4]} 39... h5 {[%clk 0:00:30.1]} 40. g4
{[%clk 0:00:01.4]} 40... Be6 {[%clk 0:00:29.8]} 41. Kg3 {[%clk 0:00:01.2]} 41...
c6 {[%clk 0:00:29.2]} 42. f4 {[%clk 0:00:00.8]} 42... Bxg4 {[%clk 0:00:28.6]}
43. d5 {[%clk 0:00:00.1]} 43... cxd5 {[%clk 0:00:28]} 0-1

[Event "Late-Titled-Tuesday-Blitz-May-14-2024"]
[Site "Chess.com"]
[Date "2024.05.14"]
[Round "3"]
[White "pirulillo"]
[Black "merinasian"]
[Result "0-1"]
[WhiteElo "2416"]
[BlackElo "2526"]
[TimeControl "180+1"]
[EndTime "14:29:22 PDT"]
[Termination "merinasian won by resignation"]

1. e4 {[%clk 0:02:59.1]} 1... d6 {[%clk 0:02:58.1]} 2. d4 {[%clk 0:02:56.2]}
2... Nd7 {[%clk 0:02:58.6]} 3. Nc3 {[%clk 0:02:55.1]} 3... g6 {[%clk 0:02:59.2]}
4. f4 {[%clk 0:02:54.8]} 4... Bg7 {[%clk 0:02:59.1]} 5. e5 {[%clk 0:02:54.8]}
5... c5 {[%clk 0:02:55.2]} 6. e6 {[%clk 0:02:45.5]} 6... fxe6 {[%clk 0:02:55.2]}
7. Nf3 {[%clk 0:02:45.2]} 7... cxd4 {[%clk 0:02:51]} 8. Ne4 {[%clk 0:02:36.5]}
8... Qb6 {[%clk 0:02:36.1]} 9. Bd3 {[%clk 0:02:32.7]} 9... Ngf6 {[%clk
0:02:33.8]} 10. Neg5 {[%clk 0:02:22.1]} 10... Nc5 {[%clk 0:02:33.6]} 11. O-O
{[%clk 0:02:17.7]} 11... O-O {[%clk 0:02:30.8]} 12. a3 {[%clk 0:02:16.4]} 12...
a5 {[%clk 0:02:28.7]} 13. Kh1 {[%clk 0:01:53.7]} 13... Nxd3 {[%clk 0:01:54.2]}
14. Qxd3 {[%clk 0:01:51.9]} 14... Bd7 {[%clk 0:01:54.7]} 15. a4 {[%clk
0:01:46.3]} 15... Nd5 {[%clk 0:01:24.6]} 16. Nxh7 {[%clk 0:01:39.9]} 16... Kxh7
{[%clk 0:01:24.4]} 17. Ng5+ {[%clk 0:01:39.5]} 17... Kg8 {[%clk 0:01:25]} 18.
Qxg6 {[%clk 0:01:39.2]} 18... Nf6 {[%clk 0:01:25.6]} 19. Rf3 {[%clk 0:01:27.3]}
19... Qb4 {[%clk 0:01:12.3]} 20. c3 {[%clk 0:01:20.4]} 20... dxc3 {[%clk
0:01:10.9]} 21. bxc3 {[%clk 0:01:20.1]} 21... Qb3 {[%clk 0:01:11]} 22. Be3
{[%clk 0:01:15.4]} 22... Be8 {[%clk 0:01:10.7]} 23. Qd3 {[%clk 0:01:12]} 23...
Qd5 {[%clk 0:01:09.8]} 24. Qe2 {[%clk 0:01:07.6]} 24... Bh5 {[%clk 0:01:08.7]}
25. Rd1 {[%clk 0:01:02.6]} 25... Bxf3 {[%clk 0:01:05.9]} 26. gxf3 {[%clk
0:01:03.5]} 26... Qf5 {[%clk 0:01:05.3]} 27. Rg1 {[%clk 0:01:02.8]} 27... Rac8
{[%clk 0:00:53.1]} 28. Bd4 {[%clk 0:01:02.4]} 28... e5 {[%clk 0:00:49.5]} 29.
fxe5 {[%clk 0:01:00.9]} 29... dxe5 {[%clk 0:00:49.3]} 30. Bxe5 {[%clk
0:00:59.3]} 30... Nh5 {[%clk 0:00:42.7]} 31. Bxg7 {[%clk 0:00:38.6]} 31... Nxg7
{[%clk 0:00:43.3]} 32. f4 {[%clk 0:00:28.9]} 32... Qd5+ {[%clk 0:00:40.1]} 33.
Rg2 {[%clk 0:00:27]} 33... Rxc3 {[%clk 0:00:39.3]} 34. h4 {[%clk 0:00:24.9]}
34... Rxf4 {[%clk 0:00:34.3]} 35. Qe1 {[%clk 0:00:09.4]} 35... Rg3 {[%clk
0:00:29.5]} 36. Qxg3 {[%clk 0:00:08.2]} 36... Qd4 {[%clk 0:00:22.5]} 37. Ne6
{[%clk 0:00:05.6]} 37... Rxh4+ {[%clk 0:00:22]} 38. Qxh4 {[%clk 0:00:05.7]}
38... Qxh4+ {[%clk 0:00:21.9]} 39. Kg1 {[%clk 0:00:06.6]} 39... Qe1+ {[%clk
0:00:21.9]} 0-1

[Event "Late-Titled-Tuesday-Blitz-May-14-2024"]
[Site "Chess.com"]
[Date "2024.05.14"]
[Round "3"]
[White "shirovin"]
[Black "NajdorfPlayerc5"]
[Result "0-1"]
[WhiteElo "2100"]
[BlackElo "2393"]
[TimeControl "180+1"]
[EndTime "14:29:23 PDT"]
[Termination "NajdorfPlayerc5 won on time"]

1. b3 {[%clk 0:03:00.9]} 1... e5 {[%clk 0:02:58.9]} 2. Bb2 {[%clk 0:03:00.2]}
2... Nc6 {[%clk 0:02:59.2]} 3. e3 {[%clk 0:03:00.7]} 3... Nf6 {[%clk 0:02:58]}
4. Nf3 {[%clk 0:03:01.3]} 4... Bd6 {[%clk 0:02:56.2]} 5. Bb5 {[%clk 0:03:00.4]}
5... Qe7 {[%clk 0:02:45.4]} 6. d3 {[%clk 0:02:54.6]} 6... O-O {[%clk 0:02:39.4]}
7. O-O {[%clk 0:02:52.8]} 7... a6 {[%clk 0:02:39.2]} 8. Bxc6 {[%clk 0:02:47.5]}
8... dxc6 {[%clk 0:02:40.1]} 9. Nbd2 {[%clk 0:02:46.1]} 9... Bg4 {[%clk
0:02:28.1]} 10. h3 {[%clk 0:02:45.1]} 10... Bh5 {[%clk 0:02:26.5]} 11. e4 {[%clk
0:02:35]} 11... Nd7 {[%clk 0:02:22.1]} 12. Nc4 {[%clk 0:02:30.2]} 12... f5
{[%clk 0:02:14.2]} 13. exf5 {[%clk 0:02:19.8]} 13... e4 {[%clk 0:01:53.5]} 14.
dxe4 {[%clk 0:01:44.7]} 14... Qxe4 {[%clk 0:01:51.1]} 15. Qd4 {[%clk 0:01:38.1]}
15... Qxd4 {[%clk 0:01:36.5]} 16. Nxd4 {[%clk 0:01:36.1]} 16... Ne5 {[%clk
0:01:13.9]} 17. Nxd6 {[%clk 0:01:23.5]} 17... cxd6 {[%clk 0:01:11]} 18. g4
{[%clk 0:01:23.4]} 18... Bf7 {[%clk 0:01:08.1]} 19. f4 {[%clk 0:01:17.2]} 19...
Nd7 {[%clk 0:01:07.9]} 20. Rfe1 {[%clk 0:01:13.1]} 20... Rfe8 {[%clk 0:01:06]}
21. Ne6 {[%clk 0:01:09.9]} 21... g6 {[%clk 0:00:53.4]} 22. Nc7 {[%clk
0:00:53.6]} 22... Rxe1+ {[%clk 0:00:51.7]} 23. Rxe1 {[%clk 0:00:52]} 23... Rc8
{[%clk 0:00:52]} 24. Ne6 {[%clk 0:00:41.8]} 24... Re8 {[%clk 0:00:49.6]} 25. c4
{[%clk 0:00:37.3]} 25... Nf8 {[%clk 0:00:46.9]} 26. Ba3 {[%clk 0:00:18.4]} 26...
c5 {[%clk 0:00:44.1]} 27. b4 {[%clk 0:00:13.9]} 27... b6 {[%clk 0:00:40.5]} 28.
bxc5 {[%clk 0:00:13.3]} 28... bxc5 {[%clk 0:00:41.4]} 29. Bb2 {[%clk 0:00:13.2]}
29... Nxe6 {[%clk 0:00:31.9]} 30. fxe6 {[%clk 0:00:12.9]} 30... Rxe6 {[%clk
0:00:32.8]} 31. Rxe6 {[%clk 0:00:07.1]} 31... Bxe6 {[%clk 0:00:33.7]} 32. Kf2
{[%clk 0:00:06.7]} 32... Bxc4 {[%clk 0:00:33.5]} 33. a3 {[%clk 0:00:07.4]} 33...
Kf7 {[%clk 0:00:32.9]} 34. Ke3 {[%clk 0:00:07.3]} 34... Bf1 {[%clk 0:00:30.3]}
35. h4 {[%clk 0:00:06.7]} 35... Ke6 {[%clk 0:00:29.5]} 36. Bc3 {[%clk
0:00:05.7]} 36... d5 {[%clk 0:00:29.3]} 37. Ba5 {[%clk 0:00:05.7]} 37... d4+
{[%clk 0:00:27.3]} 38. Kd2 {[%clk 0:00:05.3]} 38... Kd5 {[%clk 0:00:26.9]} 39.
Bb6 {[%clk 0:00:03.8]} 39... c4 {[%clk 0:00:27]} 40. a4 {[%clk 0:00:02.7]} 40...
Bh3 {[%clk 0:00:26.3]} 41. Ba5 {[%clk 0:00:02]} 41... Bxg4 {[%clk 0:00:25.7]}
42. Bb4 {[%clk 0:00:00.9]} 42... c3+ {[%clk 0:00:25.7]} 0-1

[Event "Late-Titled-Tuesday-Blitz-May-14-2024"]
[Site "Chess.com"]
[Date "2024.05.14"]
[Round "3"]
[White "Schattman"]
[Black "Felix-Rose"]
[Result "1-0"]
[WhiteElo "2564"]
[BlackElo "2285"]
[TimeControl "180+1"]
[EndTime "14:29:24 PDT"]
[Termination "Schattman won by resignation"]

1. Nf3 {[%clk 0:03:00.9]} 1... d5 {[%clk 0:02:59.4]} 2. e3 {[%clk 0:02:56.5]}
2... Nf6 {[%clk 0:02:58.6]} 3. c4 {[%clk 0:02:55.9]} 3... e6 {[%clk 0:02:58]} 4.
Nc3 {[%clk 0:02:53.6]} 4... Be7 {[%clk 0:02:55]} 5. b3 {[%clk 0:02:53.4]} 5...
O-O {[%clk 0:02:52.4]} 6. Bb2 {[%clk 0:02:53.4]} 6... b6 {[%clk 0:02:52.2]} 7.
cxd5 {[%clk 0:02:53]} 7... Nxd5 {[%clk 0:02:51.9]} 8. Nxd5 {[%clk 0:02:52.6]}
8... Qxd5 {[%clk 0:02:50.3]} 9. Bc4 {[%clk 0:02:51]} 9... Qd8 {[%clk 0:02:49.6]}
10. Qe2 {[%clk 0:02:46.7]} 10... c5 {[%clk 0:02:49.6]} 11. O-O {[%clk
0:02:45.2]} 11... Bf6 {[%clk 0:02:42]} 12. d4 {[%clk 0:02:44.8]} 12... cxd4
{[%clk 0:02:40]} 13. Nxd4 {[%clk 0:02:43.7]} 13... Bb7 {[%clk 0:02:39.7]} 14.
Rfd1 {[%clk 0:02:38.4]} 14... Qe7 {[%clk 0:02:39.7]} 15. a4 {[%clk 0:02:38.6]}
15... Rd8 {[%clk 0:02:36.3]} 16. Ba3 {[%clk 0:02:24.9]} 16... Qc7 {[%clk
0:02:28]} 17. Bb2 {[%clk 0:02:04.6]} 17... Nd7 {[%clk 0:02:09.6]} 18. Rac1
{[%clk 0:01:58.6]} 18... Qb8 {[%clk 0:01:57.7]} 19. Nxe6 {[%clk 0:01:46.8]}
19... Bxb2 {[%clk 0:01:34.5]} 20. Qxb2 {[%clk 0:01:37.8]} 20... fxe6 {[%clk
0:01:32.5]} 21. Bxe6+ {[%clk 0:01:36.4]} 21... Kh8 {[%clk 0:01:31.9]} 22. Rxd7
{[%clk 0:01:25.9]} 22... Rxd7 {[%clk 0:01:24.9]} 23. Bxd7 {[%clk 0:01:25.6]}
23... Qd6 {[%clk 0:01:18.8]} 24. Qd4 {[%clk 0:00:51.1]} 24... Qg6 {[%clk
0:01:17.6]} 25. Bh3 {[%clk 0:00:32.4]} 25... h6 {[%clk 0:01:12]} 26. g3 {[%clk
0:00:31.9]} 26... Rf8 {[%clk 0:01:03.4]} 27. Bg2 {[%clk 0:00:28.4]} 27... Bxg2
{[%clk 0:01:02.8]} 28. Kxg2 {[%clk 0:00:29.3]} 28... Qf7 {[%clk 0:01:02]} 29.
Qd2 {[%clk 0:00:13.9]} 29... Qxb3 {[%clk 0:00:57.4]} 30. Ra1 {[%clk 0:00:13]}
30... Qf7 {[%clk 0:00:54.5]} 31. h4 {[%clk 0:00:11.9]} 31... Qf3+ {[%clk
0:00:54.7]} 32. Kg1 {[%clk 0:00:12.1]} 32... Qe4 {[%clk 0:00:49.1]} 33. Qd4
{[%clk 0:00:10.7]} 33... Qf5 {[%clk 0:00:46.8]} 34. e4 {[%clk 0:00:09.6]} 34...
Qf3 {[%clk 0:00:45.4]} 35. Re1 {[%clk 0:00:08.7]} 35... Qg4 {[%clk 0:00:39.5]}
36. Qe3 {[%clk 0:00:07.4]} 36... Rf3 {[%clk 0:00:39]} 37. Qe2 {[%clk 0:00:07.5]}
37... Kh7 {[%clk 0:00:35.4]} 38. e5 {[%clk 0:00:07.8]} 38... Qf5 {[%clk
0:00:22.3]} 39. e6 {[%clk 0:00:07.1]} 39... Rc3 {[%clk 0:00:19.2]} 40. e7 {[%clk
0:00:07]} 40... Rc2 {[%clk 0:00:19.9]} 41. e8=Q {[%clk 0:00:06.6]} 41... Rxe2
{[%clk 0:00:20.3]} 42. Qxe2 {[%clk 0:00:06.5]} 1-0